bitfinex/quotes_BTCUSD_20251016
["timestamp","ask_amount","ask_price","bid_price","bid_amount"]
[1760599093258,0.17929179,111550.0,111540.0,0.33705567]
[1760599093468,0.17929179,111550.0,111540.0,0.44973567]
[1760599093678,0.17929179,111550.0,111540.0,0.33705567]
[1760599094122,0.17929179,111550.0,111540.0,0.45073567]
[1760599094538,0.58125964,111560.0,111540.0,0.45173567]
[1760599094752,0.58125964,111560.0,111540.0,0.33905567]
[1760599094960,0.58125964,111560.0,111550.0,0.11268]
[1760599095617,0.59114273,111560.0,111550.0,0.11268]
[1760599095851,0.59114273,111560.0,111540.0,0.33705567]
[1760599096050,0.59114273,111560.0,111550.0,0.11268]
[1760599096254,0.59114273,111560.0,111540.0,0.33905567]
[1760599096465,0.17929179,111550.0,111540.0,0.33805567]
[1760599096909,0.17929179,111550.0,111540.0,0.45073567]
[1760599097120,0.56182742,111560.0,111540.0,0.45073567]
[1760599097333,0.59114273,111560.0,111540.0,0.44973567]
[1760599097536,0.20859103,111560.0,111550.0,0.30797891]
[1760599097739,0.57182742,111560.0,111550.0,0.18029179]
[1760599097947,0.59114273,111560.0,111550.0,0.13060917]
[1760599098602,0.20859103,111560.0,111550.0,0.13060917]
[1760599098815,0.57182742,111560.0,111550.0,0.13060917]
[1760599099038,0.59114273,111560.0,111550.0,0.13060917]
[1760599099336,0.59114273,111560.0,111550.0,0.13160917]
[1760599099549,0.59114273,111560.0,111550.0,0.31090096]
[1760599099757,0.59114273,111560.0,111550.0,0.29397179]
[1760599100013,0.02931531,111560.0,111550.0,0.11468]
[1760599100224,0.20954993,111560.0,111550.0,0.002]
[1760599100436,0.57182742,111560.0,111550.0,0.11468]
[1760599100650,0.59114273,111560.0,111550.0,0.002]
[1760599100856,0.20859103,111560.0,111550.0,0.11468]
[1760599101276,0.18927572,111560.0,111550.0,0.01992917]
[1760599101492,0.18927572,111560.0,111550.0,0.13260917]
[1760599102113,0.18927572,111560.0,111550.0,0.01992917]
[1760599102537,0.18927572,111560.0,111550.0,0.11468]
[1760599102933,0.18927572,111560.0,111550.0,0.13260917]
[1760599103168,0.18927572,111560.0,111550.0,0.01992917]
[1760599103393,0.18927572,111560.0,111550.0,0.13260917]
[1760599103650,0.18927572,111560.0,111550.0,0.01992917]
[1760599103859,0.18927572,111560.0,111550.0,0.11468]
[1760599104590,0.57182742,111560.0,111550.0,0.11468]
[1760599104806,0.59114273,111560.0,111550.0,0.01992917]
[1760599105260,0.59114273,111560.0,111550.0,0.13260917]
[1760599105469,0.20859103,111560.0,111550.0,0.13260917]
[1760599105654,0.18927572,111560.0,111550.0,0.13260917]
[1760599105823,0.18927572,111560.0,111550.0,0.01992917]
[1760599106185,0.18927572,111560.0,111550.0,0.31190096]
[1760599106391,0.18927572,111560.0,111550.0,0.29397179]
[1760599108125,0.18927572,111560.0,111550.0,0.18129179]
[1760599108833,0.18927572,111560.0,111550.0,0.29397179]
[1760599109321,0.18927572,111560.0,111550.0,0.18129179]
[1760599109525,0.20927572,111560.0,111550.0,0.18129179]
[1760599109737,0.20927572,111560.0,111550.0,0.29397179]
[1760599110073,0.20927572,111560.0,111550.0,0.18129179]
[1760599110281,0.20927572,111560.0,111550.0,0.29397179]
[1760599110486,0.20927572,111560.0,111550.0,0.18129179]
[1760599110914,0.20927572,111560.0,111550.0,0.29397179]
[1760599111129,0.20927572,111560.0,111550.0,0.44217179]
[1760599111547,0.20927572,111560.0,111550.0,0.26288]
[1760599111756,0.20927572,111560.0,111550.0,0.1502]
[1760599111973,0.20927572,111560.0,111550.0,0.28080917]
[1760599112210,0.20927572,111560.0,111550.0,0.1502]
[1760599112415,0.20927572,111560.0,111550.0,0.28080917]
[1760599112626,0.59182742,111560.0,111550.0,0.1502]
[1760599112838,0.22859103,111560.0,111550.0,0.46010096]
[1760599113052,0.20927572,111560.0,111550.0,0.32949179]
[1760599113264,0.20927572,111560.0,111550.0,0.26288]
[1760599113670,0.22927572,111560.0,111550.0,0.26288]
[1760599114493,0.61182742,111560.0,111550.0,0.1602]
[1760599114700,0.63114273,111560.0,111550.0,0.29080917]
[1760599114931,0.63114273,111560.0,111550.0,0.27288]
[1760599115353,0.24859103,111560.0,111550.0,0.45217179]
[1760599115562,0.22927572,111560.0,111550.0,0.33949179]
[1760599115994,0.22927572,111560.0,111550.0,0.45217179]
[1760599116411,0.22927572,111560.0,111550.0,0.33949179]
[1760599116823,0.22927572,111560.0,111550.0,0.45217179]
[1760599117244,0.22927572,111560.0,111550.0,0.33949179]
[1760599117447,0.22927572,111560.0,111550.0,0.1602]
[1760599117658,0.246066,111560.0,111550.0,0.29080917]
[1760599117869,0.246066,111560.0,111550.0,0.27288]
[1760599118485,0.246066,111560.0,111550.0,0.1602]
[1760599118704,0.246066,111560.0,111550.0,0.29080917]
[1760599118919,0.6286177,111560.0,111550.0,0.1602]
[1760599119126,0.63114273,111560.0,111550.0,0.29080917]
[1760599119343,0.6479348,111560.0,111550.0,0.27288]
[1760599119825,0.63114273,111560.0,111550.0,0.27288]
[1760599120041,0.64793488,111560.0,111550.0,0.27288]
[1760599120244,0.64793486,111560.0,111550.0,0.27288]
[1760599120666,0.63114273,111560.0,111550.0,0.27288]
[1760599120871,0.6479368,111560.0,111550.0,0.1602]
[1760599121112,0.64793684,111560.0,111550.0,0.29080917]
[1760599121315,0.64793684,111560.0,111550.0,0.27288]
[1760599121933,0.26538514,111560.0,111550.0,0.27288]
[1760599122140,0.62862153,111560.0,111550.0,0.1602]
[1760599122352,0.64793684,111560.0,111550.0,0.17812917]
[1760599122584,0.64793684,111560.0,111550.0,0.29080917]
[1760599122792,0.64793684,111560.0,111550.0,0.27288]
[1760599124619,0.64793684,111560.0,111550.0,0.45217179]
[1760599124831,0.64793684,111560.0,111550.0,0.27288]
[1760599125040,0.64793684,111560.0,111550.0,0.1602]
[1760599125248,0.64793684,111560.0,111550.0,0.17812917]
[1760599125449,0.64793684,111560.0,111550.0,0.29080917]
[1760599125648,0.64793684,111560.0,111550.0,0.27288]
[1760599126493,0.64793684,111560.0,111550.0,0.1602]
[1760599126700,0.64793684,111560.0,111550.0,0.17812917]
[1760599127059,0.64793684,111560.0,111550.0,0.29080917]
[1760599127271,0.67207186,111560.0,111550.0,0.27288]
[1760599129132,0.67207186,111560.0,111550.0,0.33949179]
[1760599129340,0.08610942,111560.0,111550.0,0.45217179]
[1760599129550,0.24606983,111560.0,111550.0,0.33949179]
[1760599130036,0.24606983,111560.0,111550.0,0.45217179]
[1760599130446,0.24606983,111560.0,111550.0,0.27288]
[1760599130644,0.64793817,111560.0,111550.0,0.27288]
[1760599130879,0.64793817,111560.0,111550.0,0.1602]
[1760599131053,0.64793817,111560.0,111550.0,0.17812917]
[1760599131503,0.64793817,111560.0,111550.0,0.29080917]
[1760599131714,0.64793817,111560.0,111550.0,0.1602]
[1760599131917,0.64793817,111560.0,111550.0,0.17812917]
[1760599132125,0.64793817,111560.0,111550.0,0.29080917]
[1760599132333,0.64793817,111560.0,111550.0,0.27288]
[1760599132546,0.67207319,111560.0,111550.0,0.1602]
[1760599132759,0.67207319,111560.0,111550.0,0.29080917]
[1760599132965,0.67207319,111560.0,111550.0,0.27288]
[1760599133582,0.67207319,111560.0,111550.0,0.1602]
[1760599133792,0.67207319,111560.0,111550.0,0.29080917]
[1760599134001,0.67207319,111560.0,111550.0,0.27288]
[1760599134421,0.67207319,111560.0,111550.0,0.1602]
[1760599134607,0.67207319,111560.0,111550.0,0.29080917]
[1760599134852,0.67207319,111560.0,111550.0,0.27288]
[1760599135062,1.05462489,111560.0,111550.0,0.1602]
[1760599135482,1.05462489,111560.0,111550.0,0.27288]
[1760599135900,1.05462489,111560.0,111550.0,0.1602]
[1760599136111,0.28952149,111560.0,111550.0,0.27288]
[1760599136330,0.67207319,111560.0,111550.0,0.12468]
[1760599136551,0.64793817,111560.0,111550.0,0.14260917]
[1760599136772,0.64793817,111560.0,111550.0,0.02992917]
[1760599136990,0.64793817,111560.0,111550.0,0.14260917]
[1760599137210,0.26538647,111560.0,111550.0,0.02992917]
[1760599137433,0.24607116,111560.0,111550.0,0.14260917]
[1760599137889,0.24607116,111560.0,111550.0,0.02992917]
[1760599138071,0.24607116,111560.0,111550.0,0.14260917]
[1760599138397,0.24607116,111560.0,111550.0,0.14060917]
[1760599138585,0.24607116,111560.0,111550.0,0.02992917]
[1760599138762,0.29952996,111560.0,111550.0,0.02892917]
[1760599138963,0.29952996,111560.0,111550.0,0.14060917]
[1760599139166,0.29952996,111560.0,111550.0,0.02992917]
[1760599139530,0.29952996,111560.0,111550.0,0.32190096]
[1760599139985,0.29952996,111560.0,111550.0,0.19129179]
[1760599140143,0.29952996,111560.0,111550.0,0.32190096]
[1760599140361,0.29952996,111560.0,111550.0,0.19129179]
[1760599140566,0.29952996,111560.0,111550.0,0.32190096]
[1760599140776,0.29952996,111560.0,111550.0,0.30397179]
[1760599140985,0.29952996,111560.0,111550.0,0.19129179]
[1760599141341,0.29952996,111560.0,111550.0,0.012]
[1760599141582,0.51929179,111550.0,111540.0,1e-08]
[1760599141827,2.43529222,111530.0,111520.0,0.00048]
[1760599142068,3.47196359,111530.0,111520.0,0.00048]
[1760599142293,3.81993814,111530.0,111520.0,1e-08]
[1760599142577,3.96488344,111530.0,111520.0,0.00116931]
[1760599142811,3.95648876,111530.0,111520.0,1e-08]
[1760599143036,0.37618228,111510.0,111480.0,0.0004]
[1760599143273,3.1845358,111500.0,111490.0,0.07264906]
[1760599143459,3.3135769,111500.0,111490.0,0.18536906]
[1760599143927,3.3135769,111500.0,111490.0,0.11361696]
[1760599145308,3.4929491,111500.0,111490.0,0.00089696]
[1760599145560,3.27537265,111480.0,111470.0,0.1054]
[1760599145802,4.17604653,111480.0,111470.0,0.10554928]
[1760599146014,4.17604653,111480.0,111470.0,1e-08]
[1760599146015,4.18821225,111480.0,111470.0,1e-08]
[1760599146242,4.30991213,111480.0,111470.0,1e-08]
[1760599146463,4.31287987,111480.0,111470.0,1e-08]
[1760599147309,3.54686157,111470.0,111460.0,1e-08]
[1760599147517,3.84373901,111470.0,111460.0,1e-08]
[1760599147727,2.70824963,111470.0,111460.0,1e-08]
[1760599147938,2.79793169,111470.0,111460.0,1e-08]
[1760599148167,2.75005968,111470.0,111460.0,1e-08]
[1760599148424,0.17954933,111390.0,111370.0,0.01100155]
[1760599148676,0.17954933,111390.0,111340.0,0.0036]
[1760599148677,2.219786,111350.0,111340.0,0.11424]
[1760599148891,0.59046153,111350.0,111320.0,0.05388]
[1760599149112,0.17964609,111330.0,111320.0,0.05437821]
[1760599149324,0.02388662,111330.0,111320.0,0.05437821]
[1760599149538,0.02388662,111330.0,111320.0,0.14406833]
[1760599149539,0.03184883,111330.0,111320.0,0.14406833]
[1760599149747,0.03184883,111330.0,111320.0,0.16869821]
[1760599149935,0.21149492,111330.0,111320.0,0.16873821]
[1760599150257,0.21149492,111330.0,111320.0,0.05437821]
[1760599150469,0.21149492,111330.0,111290.0,0.01329115]
[1760599150470,0.17969451,111300.0,111290.0,0.01329115]
[1760599150674,0.20341143,111300.0,111290.0,0.00549905]
[1760599150915,0.20341143,111300.0,111290.0,0.12033905]
[1760599151160,3.57238875,111300.0,111290.0,0.00549905]
[1760599151396,3.77392675,111300.0,111290.0,0.12041905]
[1760599151652,3.43353915,111300.0,111290.0,0.12041905]
[1760599151887,0.30100719,111300.0,111290.0,0.12041905]
[1760599152155,0.20333088,111300.0,111290.0,0.12041905]
[1760599152381,0.17969451,111300.0,111290.0,0.12041905]
[1760599153027,0.17969451,111300.0,111290.0,0.00549905]
[1760599153280,0.17969451,111300.0,111290.0,0.12041905]
[1760599153493,0.17969451,111300.0,111290.0,0.00549905]
[1760599153913,0.17969451,111300.0,111290.0,0.12041905]
[1760599154137,0.17969451,111300.0,111290.0,0.00549905]
[1760599154340,0.17969451,111300.0,111290.0,0.12041905]
[1760599154969,2.219786,111300.0,111290.0,0.17433905]
[1760599155387,0.17967872,111310.0,111290.0,0.14910917]
[1760599155388,2.39946743,111310.0,111290.0,0.14910917]
[1760599155642,0.17968143,111310.0,111300.0,0.01796945]
[1760599156087,0.17968143,111310.0,111300.0,0.13288945]
[1760599156291,0.17968143,111310.0,111300.0,0.01796945]
[1760599156509,0.17968143,111310.0,111300.0,0.13288945]
[1760599156939,0.17968143,111310.0,111300.0,0.01796945]
[1760599157155,2.219786,111310.0,111300.0,0.13288945]
[1760599157372,0.01131539,111330.0,111310.0,0.17967286]
[1760599157577,2.39941656,111340.0,111320.0,0.31254834]
[1760599157837,2.219786,111330.0,111320.0,0.11492]
[1760599158060,2.219786,111340.0,111330.0,0.17964609]
[1760599158271,2.219786,111340.0,111320.0,0.38427235]
[1760599158457,0.21564954,111360.0,111330.0,0.17964255]
[1760599158709,0.22564954,111360.0,111340.0,0.11492]
[1760599158912,0.18960689,111360.0,111340.0,0.31250576]
[1760599159141,0.18960689,111360.0,111340.0,0.29454277]
[1760599159350,0.17961383,111350.0,111340.0,0.11506944]
[1760599159556,0.17961383,111350.0,111340.0,0.13303243]
[1760599161644,0.17961383,111350.0,111340.0,0.13299243]
[1760599161869,0.17960689,111360.0,111340.0,0.31262222]
[1760599162082,0.17960689,111360.0,111340.0,0.11502944]
[1760599162301,0.17960689,111360.0,111340.0,0.13299243]
[1760599162519,0.17961383,111350.0,111340.0,0.13299243]
[1760599162738,0.15922072,111360.0,111340.0,0.31262137]
[1760599162953,0.17949493,111360.0,111340.0,0.00014944]
[1760599163158,0.17949493,111360.0,111350.0,0.11488]
[1760599163775,0.17949493,111360.0,111340.0,0.17977924]
[1760599163981,0.17961383,111350.0,111340.0,0.00014944]
[1760599164187,0.17961383,111350.0,111340.0,0.11498944]
[1760599164635,0.17961383,111350.0,111340.0,0.00014944]
[1760599164846,0.17961383,111350.0,111340.0,0.11498944]
[1760599165053,0.15922072,111360.0,111340.0,0.2946174]
[1760599165265,0.17949493,111360.0,111340.0,0.1797774]
[1760599165547,0.17949493,111360.0,111350.0,0.11484]
[1760599165972,0.17949493,111360.0,111350.0,0.1148]
[1760599167429,0.04575589,111370.0,111350.0,0.31237521]
[1760599167648,0.02700655,111370.0,111360.0,0.2335177]
[1760599167860,0.02700655,111370.0,111360.0,0.3483177]
[1760599168100,2.219786,111380.0,111370.0,0.17957497]
[1760599168307,2.23853534,111380.0,111370.0,0.17957497]
[1760599168514,0.01874934,111380.0,111370.0,0.17957497]
[1760599168716,0.20727678,111390.0,111370.0,0.29437497]
[1760599168926,0.01874934,111390.0,111380.0,0.29432545]
[1760599169140,0.04238571,111390.0,111380.0,0.29432545]
[1760599169356,0.01874934,111390.0,111380.0,0.17956545]
[1760599169568,0.01874934,111390.0,111380.0,0.85010873]
[1760599169776,0.01874934,111400.0,111390.0,0.17954933]
[1760599170202,0.01874934,111400.0,111390.0,0.179599]
[1760599170410,0.02363637,111410.0,111400.0,0.17953321]
[1760599170411,0.01874934,111410.0,111400.0,0.17953321]
[1760599170644,0.04238571,111420.0,111410.0,0.17951709]
[1760599170861,2.23853534,111420.0,111410.0,0.17951709]
[1760599171075,0.01874934,111420.0,111410.0,0.38396721]
[1760599171284,2.219786,111430.0,111410.0,0.08969012]
[1760599171505,0.24184536,111430.0,111400.0,0.17953304]
[1760599171717,2.219786,111420.0,111410.0,0.31222775]
[1760599171991,0.01899044,111420.0,111410.0,0.17951605]
[1760599172206,0.01899044,111420.0,111400.0,0.27819982]
[1760599172207,0.01899044,111420.0,111400.0,0.08969012]
[1760599172428,2.39930327,111410.0,111390.0,0.25134407]
[1760599172640,0.13700213,111410.0,111400.0,0.11476]
[1760599173067,0.13700213,111410.0,111400.0,0.17953321]
[1760599173330,0.1606385,111410.0,111400.0,0.29429321]
[1760599173967,0.1606385,111410.0,111390.0,0.34103419]
[1760599174209,0.1606385,111410.0,111400.0,0.29429321]
[1760599174432,0.19226106,111410.0,111400.0,0.29425321]
[1760599175153,0.19226106,111410.0,111400.0,0.17953321]
[1760599175371,0.06716323,111410.0,111400.0,0.29425321]
[1760599175783,0.06716323,111410.0,111400.0,0.17953321]
[1760599175986,0.06716323,111410.0,111400.0,0.29421321]
[1760599177040,0.06716323,111410.0,111400.0,0.17953321]
[1760599177041,0.24668032,111410.0,111400.0,0.17953321]
[1760599177463,0.29411416,111410.0,111400.0,0.29417321]
[1760599177885,0.29411416,111410.0,111400.0,0.17953321]
[1760599178095,0.29411416,111410.0,111400.0,0.29417321]
[1760599178301,0.11459707,111410.0,111400.0,0.29417321]
[1760599178511,0.11459707,111410.0,111400.0,0.18655719]
[1760599178737,0.11459707,111410.0,111400.0,0.30119719]
[1760599178967,0.06716323,111410.0,111400.0,0.30119719]
[1760599179197,0.06716323,111410.0,111400.0,0.30115719]
[1760599179439,0.06716323,111410.0,111400.0,0.35507719]
[1760599180271,0.06716323,111410.0,111400.0,0.24047719]
[1760599180472,0.06716323,111410.0,111400.0,0.35507719]
[1760599180849,0.06716323,111410.0,111400.0,0.24047719]
[1760599181120,0.050613,111410.0,111400.0,0.35507719]
[1760599181601,0.06718319,111410.0,111400.0,0.35507719]
[1760599182022,0.050613,111410.0,111400.0,0.35507719]
[1760599182620,0.08300219,111410.0,111400.0,0.35507719]
[1760599182830,0.03182695,111410.0,111400.0,0.35507719]
[1760599183297,0.05571252,111410.0,111400.0,0.24047719]
[1760599183508,0.05571252,111410.0,111400.0,1.02554047]
[1760599183750,0.02388557,111410.0,111400.0,1.11523059]
[1760599184394,0.02388557,111410.0,111400.0,0.44468731]
[1760599185060,2.219786,111430.0,111420.0,0.17950098]
[1760599185273,0.01,111430.0,111420.0,0.29402098]
[1760599186103,0.01897424,111430.0,111420.0,0.29402098]
[1760599186515,0.19845911,111430.0,111420.0,0.29402098]
[1760599186939,0.01,111430.0,111420.0,0.17950098]
[1760599187146,0.01,111430.0,111420.0,0.29402098]
[1760599187568,0.01,111430.0,111420.0,0.17950098]
[1760599187840,0.01,111430.0,111420.0,0.29398098]
[1760599188286,0.01,111430.0,111420.0,0.17950098]
[1760599189437,0.01,111430.0,111420.0,0.29394098]
[1760599189862,2.719786,111440.0,111430.0,0.17948487]
[1760599190105,2.40925477,111440.0,111430.0,0.17948487]
[1760599190318,2.40925477,111440.0,111430.0,0.29392487]
[1760599190738,2.40925477,111440.0,111430.0,0.17948487]
[1760599190999,2.40925477,111440.0,111430.0,0.29392487]
[1760599191207,2.40975185,111440.0,111430.0,0.29915144]
[1760599191420,2.23028308,111440.0,111430.0,0.29915144]
[1760599191630,2.23028308,111440.0,111430.0,0.18475144]
[1760599191840,2.23028308,111440.0,111430.0,0.29915144]
[1760599192277,2.23028308,111440.0,111430.0,0.18475144]
[1760599192463,2.23028308,111440.0,111430.0,0.29915144]
[1760599193092,2.40975185,111440.0,111430.0,0.29915144]
[1760599193507,2.40975185,111440.0,111430.0,0.29911144]
[1760599193717,2.40975185,111440.0,111430.0,0.35303144]
[1760599194330,2.40975185,111440.0,111430.0,0.23867144]
[1760599194485,2.40975185,111440.0,111430.0,0.35303144]
[1760599194911,2.44562941,111440.0,111430.0,0.30449764]
[1760599196224,2.5180005,111440.0,111430.0,0.30449764]
[1760599196640,2.5180005,111440.0,111430.0,0.17354657]
[1760599196821,2.5180005,111440.0,111430.0,0.17350657]
[1760599197026,2.5180005,111440.0,111430.0,0.35299144]
[1760599197392,2.5180005,111440.0,111430.0,0.23867144]
[1760599197604,2.5180005,111440.0,111430.0,0.17350657]
[1760599197813,2.5180005,111440.0,111430.0,0.11432]
[1760599198021,2.219786,111430.0,111420.0,0.17949669]
[1760599198227,2.20905756,111430.0,111420.0,0.17949669]
[1760599198430,0.03587756,111430.0,111420.0,0.29377669]
[1760599199218,0.03587756,111430.0,111420.0,0.17949669]
[1760599199403,0.04424573,111430.0,111420.0,0.29377669]
[1760599199870,0.04424573,111430.0,111420.0,0.29373669]
[1760599202171,0.23379957,111430.0,111410.0,0.23343289]
[1760599202420,0.17950098,111420.0,111410.0,0.23343289]
[1760599202634,0.17950098,111420.0,111410.0,0.16816]
[1760599202635,0.21544751,111420.0,111410.0,0.16816]
[1760599202858,0.26365397,111420.0,111410.0,0.05392]
[1760599203491,0.17951744,111410.0,111390.0,0.0717521]
[1760599203760,0.17953321,111400.0,111390.0,0.0717521]
[1760599203970,0.26368383,111400.0,111390.0,0.0717521]
[1760599204200,0.26368383,111400.0,111390.0,0.1859921]
[1760599204430,0.21547974,111400.0,111390.0,0.1859921]
[1760599204662,0.22216826,111400.0,111390.0,0.36554143]
[1760599204888,0.21547974,111400.0,111390.0,0.17954933]
[1760599205098,0.21547974,111400.0,111390.0,0.293839]
[1760599206163,0.22223711,111400.0,111390.0,0.293799]
[1760599206787,0.03594653,111400.0,111390.0,0.293799]
[1760599206998,0.21547974,111400.0,111390.0,0.293799]
[1760599207638,0.21547974,111400.0,111390.0,0.179599]
[1760599207849,0.21547974,111400.0,111390.0,0.293799]
[1760599208071,0.08411063,111400.0,111390.0,0.293799]
[1760599208275,0.26364384,111400.0,111390.0,0.293759]
[1760599209119,0.27364384,111400.0,111390.0,0.293759]
[1760599209563,0.27364384,111400.0,111390.0,0.29610148]
[1760599210035,0.27362024,111400.0,111390.0,0.11655215]
[1760599210241,0.27362024,111400.0,111390.0,0.18194148]
[1760599210448,0.27362024,111400.0,111390.0,0.29610148]
[1760599210661,0.27366598,111400.0,111390.0,0.29610148]
[1760599210868,0.27366598,111400.0,111390.0,0.18194148]
[1760599211078,0.27366598,111400.0,111390.0,0.29610148]
[1760599211549,0.27366598,111400.0,111390.0,0.29606148]
[1760599211759,0.07741635,111400.0,111390.0,0.18194148]
[1760599211969,0.27367234,111400.0,111390.0,0.29606148]
[1760599212193,0.27367234,111400.0,111380.0,0.05]
[1760599212414,0.27367234,111400.0,111290.0,0.005]
[1760599212415,2.36177452,111350.0,111290.0,0.005]
[1760599212655,0.17969069,111310.0,111290.0,0.005]
[1760599212869,3.02341779,111300.0,111290.0,0.00549905]
[1760599213108,3.22261484,111300.0,111290.0,0.07857905]
[1760599213322,3.15438442,111300.0,111290.0,0.00549905]
[1760599213536,2.25708185,111300.0,111290.0,0.00549905]
[1760599213750,0.03597503,111300.0,111290.0,0.00549905]
[1760599214183,0.85020605,111320.0,111290.0,0.11316023]
[1760599214393,0.85020605,111320.0,111290.0,0.22888023]
[1760599214601,0.85020605,111320.0,111300.0,0.01796945]
[1760599214809,0.86020605,111320.0,111310.0,0.11572]
[1760599215450,0.17967837,111310.0,111300.0,0.01796945]
[1760599215869,0.17967837,111310.0,111300.0,0.13368945]
[1760599216075,0.85020605,111320.0,111300.0,0.01796945]
[1760599216280,0.86020605,111320.0,111300.0,0.01796945]
[1760599216529,0.18966277,111320.0,111310.0,0.11568]
[1760599217374,0.17967837,111310.0,111300.0,0.01796945]
[1760599217582,0.17967837,111310.0,111300.0,0.13364945]
[1760599218079,0.17967837,111310.0,111300.0,0.01796945]
[1760599218296,0.17967837,111310.0,111300.0,0.13364945]
[1760599218515,0.17967837,111310.0,111300.0,0.13892525]
[1760599218719,0.17967837,111310.0,111300.0,0.02324525]
[1760599218950,0.17967837,111310.0,111300.0,0.13888525]
[1760599219609,0.17967837,111310.0,111300.0,0.02324525]
[1760599219813,0.17967837,111310.0,111300.0,0.13888525]
[1760599220430,0.17967837,111310.0,111300.0,0.02324525]
[1760599220839,0.17967837,111310.0,111300.0,0.13884525]
[1760599221453,0.17967837,111310.0,111300.0,0.02324525]
[1760599221646,0.70583883,111310.0,111300.0,0.0052758]
[1760599221895,2.79942778,111310.0,111300.0,0.0052758]
[1760599222347,2.79942778,111310.0,111300.0,0.1208758]
[1760599222575,3.2291179,111310.0,111300.0,0.0052758]
[1760599222793,3.31879998,111310.0,111300.0,0.1208758]
[1760599223056,3.2291179,111310.0,111300.0,0.1208758]
[1760599223280,3.2291179,111310.0,111300.0,0.1208358]
[1760599223730,3.26530018,111310.0,111300.0,0.0052758]
[1760599223961,0.51969451,111300.0,111290.0,0.00549905]
[1760599224179,3.31531632,111300.0,111290.0,0.00549905]
[1760599224392,3.4049984,111300.0,111290.0,0.11357905]
[1760599224621,0.17972681,111280.0,111270.0,0.0717521]
[1760599224836,0.61629622,111280.0,111270.0,0.18744633]
[1760599225052,2.78947622,111280.0,111270.0,0.00013423]
[1760599225271,3.70191803,111280.0,111270.0,0.00013423]
[1760599225483,3.71300689,111280.0,111270.0,0.11569423]
[1760599225904,3.71300689,111280.0,111270.0,0.11573423]
[1760599226124,3.83824872,111280.0,111270.0,1e-08]
[1760599226375,3.8701725,111280.0,111270.0,1e-08]
[1760599226643,3.78049042,111280.0,111270.0,1e-08]
[1760599228147,3.78063288,111280.0,111270.0,1e-08]
[1760599228571,3.8285597,111280.0,111270.0,1e-08]
[1760599230212,3.82830736,111280.0,111270.0,1e-08]
[1760599230412,3.91798944,111280.0,111270.0,1e-08]
[1760599230597,3.2291214,111260.0,111250.0,0.0035]
[1760599230799,3.33094068,111260.0,111250.0,0.00364959]
[1760599231003,3.292172,111260.0,111250.0,0.00364959]
[1760599232593,3.2990745,111260.0,111250.0,0.11912959]
[1760599232803,2.86250509,111260.0,111250.0,0.00364959]
[1760599233036,3.2990745,111260.0,111250.0,0.11912959]
[1760599233682,3.2990745,111260.0,111250.0,0.00364959]
[1760599233893,3.2990745,111260.0,111250.0,0.11912959]
[1760599235462,3.38875656,111260.0,111250.0,0.00364959]
[1760599235702,3.2990745,111260.0,111250.0,0.11908959]
[1760599236342,3.2990745,111260.0,111250.0,0.12026314]
[1760599236780,3.2990745,111260.0,111250.0,0.00482314]
[1760599237071,3.2990745,111260.0,111250.0,1e-08]
[1760599237326,3.33074594,111260.0,111250.0,1e-08]
[1760599237540,3.37867276,111260.0,111250.0,1e-08]
[1760599237765,3.45434891,111260.0,111250.0,1e-08]
[1760599237990,0.5198076,111230.0,111220.0,0.0722321]
[1760599238217,3.18511676,111230.0,111220.0,0.07236652]
[1760599238443,2.74854735,111230.0,111220.0,0.00061442]
[1760599238668,3.18511676,111230.0,111220.0,0.11601442]
[1760599238887,3.18511676,111230.0,111220.0,0.1177754]
[1760599239764,3.18511676,111230.0,111220.0,0.0023754]
[1760599239993,3.18511676,111230.0,111220.0,0.1177754]
[1760599241152,3.21681133,111230.0,111220.0,0.1177354]
[1760599241608,2.78024192,111230.0,111220.0,0.1177354]
[1760599241835,3.21681133,111230.0,111220.0,0.1177354]
[1760599242300,3.23304358,111230.0,111220.0,0.0023754]
[1760599242926,3.42294141,111230.0,111220.0,0.0023754]
[1760599244255,3.35891598,111230.0,111220.0,1e-08]
[1760599244463,3.31098916,111230.0,111220.0,1e-08]
[1760599244678,3.37512748,111230.0,111220.0,1e-08]
[1760599244839,3.37512748,111230.0,111200.0,0.005]
[1760599244840,0.17983994,111210.0,111200.0,0.005]
[1760599245061,0.24724541,111210.0,111200.0,0.00508966]
[1760599245410,0.27113228,111210.0,111200.0,0.00508966]
[1760599245615,0.24724541,111210.0,111200.0,0.00508966]
[1760599245823,0.27113229,111210.0,111200.0,0.00508966]
[1760599246248,0.24724541,111210.0,111200.0,0.00508966]
[1760599247611,0.24724541,111210.0,111200.0,0.12036966]
[1760599248073,0.09130733,111210.0,111200.0,0.12036966]
[1760599248289,0.09130733,111210.0,111200.0,0.8264853]
[1760599248535,0.09130733,111210.0,111200.0,1.1664853]
[1760599248536,0.03555975,111210.0,111200.0,1.1664853]
[1760599248750,0.01903617,111220.0,111210.0,0.17983994]
[1760599248959,0.02390186,111230.0,111220.0,0.17982377]
[1760599249173,0.02390186,111230.0,111220.0,0.08969012]
[1760599249174,0.04022762,111230.0,111220.0,0.08969012]
[1760599249383,0.04776858,111280.0,111240.0,0.17979144]
[1760599249620,0.17971231,111290.0,111260.0,0.00898795]
[1760599249834,2.35290811,111280.0,111260.0,0.01797591]
[1760599250101,2.35292388,111270.0,111240.0,0.00898957]
[1760599250296,2.35292388,111270.0,111220.0,0.65468735]
[1760599250297,2.36192868,111260.0,111220.0,1.12682658]
[1760599250505,2.17318,111260.0,111240.0,0.17979127]
[1760599250716,2.17318,111250.0,111240.0,0.17979127]
[1760599251078,2.17318,111260.0,111250.0,0.17977528]
[1760599251699,0.34,111270.0,111260.0,0.17975912]
[1760599251902,0.02,111270.0,111260.0,0.17975912]
[1760599252867,0.02,111270.0,111260.0,0.17984878]
[1760599255535,3.81259926,111270.0,111260.0,8.966e-05]
[1760599255791,2.88656394,111270.0,111260.0,8.966e-05]
[1760599256025,2.24121322,111270.0,111260.0,0.17984878]
[1760599256716,2.42095618,111270.0,111260.0,0.17984878]
[1760599256941,2.42095618,111270.0,111260.0,8.966e-05]
[1760599257191,3.28721571,111270.0,111260.0,8.966e-05]
[1760599257473,3.32339799,111270.0,111260.0,8.966e-05]
[1760599259343,3.27536477,111270.0,111260.0,8.966e-05]
[1760599260012,3.36504685,111270.0,111260.0,8.966e-05]
[1760599260233,0.17980716,111240.0,111220.0,0.26056705]
[1760599260466,0.17980716,111240.0,111220.0,0.25171046]
[1760599260698,0.1798076,111230.0,111220.0,0.07188669]
[1760599260916,0.1798076,111230.0,111220.0,0.00013459]
[1760599261187,0.21567949,111230.0,111220.0,0.00013459]
[1760599261653,3.00931117,111230.0,111220.0,0.00013459]
[1760599262101,2.9613013,111230.0,111220.0,0.00013459]
[1760599262322,3.00929728,111230.0,111220.0,0.00013459]
[1760599262547,3.02543962,111230.0,111220.0,0.00013459]
[1760599262773,2.58887021,111230.0,111220.0,0.00013459]
[1760599263005,3.02543962,111230.0,111220.0,0.00013459]